bitfinex/quotes_ETHUSD_20240721
["timestamp","ask_amount","ask_price","bid_price","bid_amount"]
[1721545075288,20.0,3491.0,3490.9,8.039538]
[1721545080836,20.0,3491.0,3490.9,7.08418]
[1721545086514,20.0,3491.0,3490.9,10.9446044]
[1721545087046,20.0,3491.0,3490.9,9.94877]
[1721545087186,20.0,3491.0,3490.9,10.94459083]
[1721545087717,20.0,3491.0,3490.9,13.44409083]
[1721545087927,20.0,3491.0,3490.9,16.58179643]
[1721545090258,20.0,3491.0,3490.9,16.58171698]
[1721545090457,20.0,3491.0,3490.9,14.28305591]
[1721545090626,20.0,3491.0,3490.9,16.58171698]
[1721545090825,20.0,3491.0,3490.9,15.08805591]
[1721545091139,20.0,3491.0,3490.9,16.58171698]
[1721545091345,20.0,3491.0,3490.9,15.08805591]
[1721545091554,20.0,3491.0,3490.9,16.58171698]
[1721545091734,20.0,3491.0,3490.9,15.08805591]
[1721545091932,20.0,3491.0,3490.9,16.58171698]
[1721545092125,20.0,3491.0,3490.9,15.08805591]
[1721545092325,20.0,3491.0,3490.9,16.58171698]
[1721545092525,20.0,3491.0,3490.9,15.08805591]
[1721545092758,20.0,3491.0,3490.9,16.58171698]
[1721545093055,20.0,3491.0,3490.9,15.08805591]
[1721545093276,20.0,3491.0,3490.9,16.58171698]
[1721545093427,20.0,3491.0,3490.9,15.08805941]
[1721545094343,20.0,3491.0,3490.9,16.58172574]
[1721545094639,20.0,3491.0,3490.9,22.44631574]
[1721545094960,20.0,3491.0,3490.9,23.04628243]
[1721545096461,20.0,3491.0,3490.9,20.55683855]
[1721545096636,20.0,3491.0,3490.9,23.0460643]
[1721545097249,20.0,3491.0,3490.9,21.55252885]
[1721545097444,20.0,3491.0,3490.9,23.0460643]
[1721545099362,20.0,3491.0,3490.9,20.95256216]
[1721545099542,20.0,3491.0,3490.9,22.44609761]
[1721545099732,20.0,3491.0,3490.9,23.04605765]
[1721545100065,20.0,3491.0,3490.9,22.44609096]
[1721545102742,20.0,3491.0,3490.9,19.95687186]
[1721545102934,20.0,3491.0,3490.9,22.44604067]
[1721545103672,20.0,3491.0,3490.9,22.54604067]
[1721545106179,20.0,3491.0,3490.9,23.14655535]
[1721545106679,20.0,3491.0,3490.9,22.54604746]
[1721545107238,20.0,3491.0,3490.9,23.14657674]
[1721545107439,20.0,3491.0,3490.9,22.54604746]
[1721545109244,20.0,3491.0,3490.9,22.54606869]
[1721545112360,20.0,3491.0,3490.9,22.54606954]
[1721545115700,20.0,3491.0,3490.9,22.54605664]
[1721545116260,20.0,3491.0,3490.9,20.04655664]
[1721545118873,20.0,3491.0,3490.9,20.04662699]
[1721545120696,20.0,3491.0,3490.9,20.94899431]
[1721545121963,20.0,3491.0,3490.9,20.94891623]
[1721545122512,20.0,3491.0,3490.9,20.94891628]
[1721545122690,20.0,3491.0,3490.9,20.14391628]
[1721545123200,20.0,3491.0,3490.9,20.94891628]
[1721545124473,20.0,3491.0,3490.9,20.94891786]
[1721545125109,20.0,3491.0,3490.9,18.45973918]
[1721545125418,20.0,3491.0,3490.9,20.94891523]
[1721545126786,20.0,3491.0,3490.9,20.04654791]
[1721545126986,20.0,3491.0,3490.9,17.18195791]
[1721545127542,20.0,3491.0,3490.9,17.78294742]
[1721545128105,20.0,3491.0,3490.9,17.18195791]
[1721545128438,20.0,3491.0,3490.9,17.18209144]
[1721545129521,20.0,3491.0,3490.9,18.08445876]
[1721545131541,20.0,3491.0,3490.9,18.08445145]
[1721545133045,20.0,3491.0,3490.9,17.18208413]
[1721545134613,20.0,3491.0,3490.9,17.18205599]
[1721545135231,20.0,3491.0,3490.9,19.05597732]
[1721545137243,20.0,3491.0,3490.9,20.25913374]
[1721545137443,20.0,3491.0,3490.9,18.38521241]
[1721545137632,20.0,3491.0,3490.9,20.25913374]
[1721545137833,20.0,3491.0,3490.9,17.76985961]
[1721545138023,20.0,3491.0,3490.9,18.38521648]
[1721545138553,20.0,3491.0,3490.9,20.25913781]
[1721545138746,20.0,3491.0,3490.9,18.38521648]
[1721545138913,20.0,3491.0,3490.9,20.25913781]
[1721545139115,20.0,3491.0,3490.9,18.38521648]
[1721545139316,20.0,3491.0,3490.9,20.25913781]
[1721545140746,20.0,3491.0,3490.9,20.25913767]
[1721545143529,20.0,3491.0,3490.9,17.76985961]
[1721545143931,20.0,3491.0,3490.9,20.25913779]
[1721545146125,19.19699999,3491.0,3490.9,20.25913779]
[1721545146459,18.49712233,3491.0,3490.9,20.56049507]
[1721545146758,18.49712233,3491.0,3490.9,20.56023699]
[1721545149438,18.49712233,3491.0,3490.9,19.05581904]
[1721545149862,18.49712233,3491.0,3490.9,16.56670319]
[1721545150065,18.49712233,3491.0,3490.9,19.05588434]
[1721545150230,18.49712233,3491.0,3490.9,20.56030441]
[1721545150966,18.49712233,3491.0,3490.9,19.05588434]
[1721545151668,18.49712233,3491.0,3490.9,18.25088434]
[1721545151868,18.49712233,3491.0,3490.9,20.56030441]
[1721545153148,18.49712233,3491.0,3490.9,20.56020456]
[1721545156083,18.49712233,3491.0,3490.9,19.05583626]
[1721545156241,18.49712233,3491.0,3490.9,16.56670319]
[1721545156436,18.49712233,3491.0,3490.9,19.05588742]
[1721545159479,18.49712233,3491.0,3490.9,19.05588665]
[1721545162602,18.49712233,3491.0,3490.9,16.56670319]
[1721545162770,18.49712233,3491.0,3490.9,19.05588827]
[1721545164265,18.49712233,3491.0,3490.9,20.56018378]
[1721545165089,18.49712233,3491.0,3490.9,19.05588827]
[1721545165918,18.49712233,3491.0,3490.9,19.05588701]
[1721545166473,18.49712233,3491.0,3490.9,23.42477308]
[1721545166917,18.49712233,3491.0,3490.9,20.56018308]
[1721545167673,18.49712233,3491.0,3490.9,23.42477308]
[1721545167877,18.49712233,3491.0,3490.9,20.56018308]
[1721545168279,18.49712233,3491.0,3490.9,23.42477308]
[1721545169079,18.49712233,3491.0,3490.9,20.56011373]
[1721545169313,18.49712233,3491.0,3490.9,19.05585424]
[1721545172441,18.49712233,3491.0,3490.9,19.05588974]
[1721545172622,18.49712233,3491.0,3490.9,20.56015144]
[1721545172794,18.49712233,3491.0,3490.9,23.42474144]
[1721545173219,18.49712233,3491.0,3490.9,21.92047974]
[1721545173914,18.49712233,3491.0,3490.9,23.42474144]
[1721545175527,17.43298705,3491.0,3490.9,24.88120927]
[1721545175722,16.60438705,3491.0,3490.9,23.3769187]
[1721545176634,7.46774783,3491.0,3490.9,23.3769187]
[1721545176946,2.4309,3491.8,3491.7,8.59179]
[1721545177149,2.4309,3492.3,3492.2,5.72704]
[1721545177311,2.4309,3492.3,3492.2,6.53204]
[1721545177504,2.4309,3492.3,3492.2,7.08204]
[1721545182563,2.4309,3492.3,3492.2,0.805]
[1721545184024,2.4309,3492.3,3492.2,1.355]
[1721545188370,2.4309,3492.3,3492.2,0.55]
[1721545194042,2.4309,3492.3,3492.2,4.21852]
[1721545196970,2.4309,3492.3,3492.2,3.66852]
[1721545198242,2.4309,3492.3,3492.0,2.86367]
[1721545198243,2.73370496,3492.3,3492.0,2.86367]
[1721545198461,2.73370496,3492.3,3492.1,0.55]
[1721545199579,2.73370496,3492.3,3492.0,2.86367]
[1721545199741,2.73370496,3492.3,3491.9,0.805]
[1721545200279,2.73370496,3492.3,3491.9,3.66876]
[1721545200465,2.73370496,3492.3,3491.9,2.86376]
[1721545200466,0.7089859,3492.2,3491.9,2.86376]
[1721545200786,0.7089859,3492.2,3491.6,10.314]
[1721545200787,2.97704962,3492.1,3491.6,7.45]
[1721545201007,3.46012706,3491.7,3491.2,2.4501]
[1721545201144,0.59621973,3491.5,3491.2,2.4501]
[1721545201345,3.46037973,3491.5,3491.2,2.4501]
[1721545201656,3.46047973,3491.3,3491.2,2.4501]
[1721545201857,0.89429559,3491.3,3490.9,0.1]
[1721545202106,0.72186053,3491.4,3489.9,1.4940359]
[1721545202107,2.8647,3490.8,3489.9,1.4940359]
[1721545202376,2.8647,3490.8,3489.9,0.805]
[1721545202377,2.86482,3490.7,3489.9,0.805]
[1721545202586,3.46021811,3490.8,3489.8,3.67042]
[1721545202587,0.59551811,3490.6,3489.8,3.67042]
[1721545202794,0.43545137,3490.5,3489.8,3.67042]
[1721545203304,0.43545137,3490.5,3489.8,0.805]
[1721545203795,0.43545137,3490.5,3489.7,2.86555]
[1721545203796,2.4799,3490.3,3489.7,2.86555]
[1721545204155,2.4799,3490.3,3489.8,3.67049]
[1721545204502,2.4799,3490.3,3489.5,2.87073]
[1721545204503,2.4799,3490.3,3490.0,0.805]
[1721545204655,2.4799,3490.3,3490.2,0.805]
[1721545206253,2.4799,3490.3,3490.0,3.67026]
[1721545206989,2.4799,3490.3,3489.8,3.67046]
[1721545207291,2.4799,3490.3,3489.9,0.55]
[1721545207489,2.4799,3490.3,3489.9,3.41539]
[1721545209065,2.4799,3490.3,3489.9,2.86539]
[1721545210499,2.4799,3490.3,3490.0,0.805]
[1721545210701,2.86459,3490.9,3489.5,0.005]
[1721545210702,2.4799,3490.8,3490.2,0.805]
[1721545210912,3.052801,3490.8,3490.2,0.805]
[1721545211264,5.917501,3490.8,3490.2,0.805]
[1721545213308,5.917501,3490.8,3490.1,2.86522]
[1721545213807,3.052801,3490.8,3490.1,2.86522]
[1721545213963,0.5917391,3490.7,3490.1,2.86522]
[1721545214170,0.5917391,3490.7,3490.1,3.67022]
[1721545215604,3.4564891,3490.7,3489.9,2.96541]
[1721545215807,3.4564891,3490.7,3490.0,2.86531]
[1721545216983,3.4564891,3490.7,3490.0,2.86532]
[1721545216984,3.4565591,3490.7,3490.0,2.86532]
[1721545217187,0.59363891,3490.6,3489.9,0.905]
[1721545217485,2.4799,3490.8,3490.1,0.805]
[1721545218289,2.4799,3490.8,3490.2,2.86513]
[1721545218513,2.4799,3490.8,3490.5,2.86491]
[1721545219974,2.4799,3490.8,3490.5,3.66991]
[1721545220177,2.4799,3490.8,3490.7,2.86475]
[1721545221878,2.4799,3490.8,3490.5,2.86491]
[1721545222198,2.27,3491.2,3490.8,2.86465]
[1721545222403,2.27,3491.2,3490.6,0.805]
[1721545222404,3.15559805,3491.2,3490.6,2.86477]
[1721545222587,2.27,3491.2,3490.6,2.86477]
[1721545223014,2.27,3491.2,3490.3,2.86506]
[1721545223316,2.86426,3491.3,3490.3,2.86506]
[1721545223317,2.27,3491.0,3490.3,2.86506]
[1721545223677,5.13453,3491.0,3490.3,2.86506]
[1721545223872,0.513453,3490.9,3490.3,2.86506]
[1721545224690,2.27,3490.8,3490.1,2.86523]
[1721545225008,2.27,3490.7,3490.1,2.86523]
[1721545226525,5.13475,3490.7,3490.1,2.86523]
[1721545226831,5.13475,3490.7,3490.0,3.6703]
[1721545227030,6.015176,3490.7,3490.0,3.6703]
[1721545227540,6.015176,3490.7,3490.1,2.86524]
[1721545227712,2.27,3490.7,3490.1,2.86524]
[1721545228115,2.27,3490.7,3490.2,0.805]
[1721545228442,2.27,3490.7,3490.2,3.67016]
[1721545228774,2.27,3490.7,3490.4,3.66993]
[1721545229104,2.27,3490.7,3490.4,0.805]
[1721545229330,2.27,3490.7,3490.3,2.86507]
[1721545231099,2.27,3490.7,3490.4,2.86499]
[1721545233005,2.27,3490.7,3490.1,5.73042]
[1721545233252,3.069914,3490.7,3489.9,2.96537]
[1721545233451,5.934744,3490.7,3489.9,0.905]
[1721545233979,5.934744,3490.7,3490.0,2.8653]
[1721545234269,5.13326,3490.6,3489.9,3.77041]
[1721545234474,5.7267344,3490.6,3489.9,3.77041]
[1721545234943,5.7267344,3490.6,3489.9,2.96541]
[1721545235140,5.7267344,3490.6,3489.9,3.77041]
[1721545235560,5.7267344,3490.6,3490.0,2.86531]
[1721545242407,2.2684,3490.4,3489.9,0.1]
[1721545243400,2.86522,3490.2,3489.9,0.1]
[1721545243713,2.2684,3490.1,3489.9,0.1]
[1721545247371,2.86532,3490.0,3489.9,0.1]
[1721545248895,3.75961559,3490.0,3489.9,0.1]
[1721545249099,4.9172462,3490.0,3489.9,0.1]
[1721545250117,4.02295061,3490.0,3489.9,0.1]
[1721545251329,4.61942585,3490.0,3489.9,0.1]
[1721545251497,4.02295061,3490.0,3489.9,0.1]
[1721545252588,4.61934436,3490.0,3489.9,0.1]
[1721545252916,7.09723272,3490.0,3489.9,0.1]
[1721545253122,6.50075061,3490.0,3489.9,0.1]
[1721545255131,7.09701633,3490.0,3489.9,0.1]
[1721545255899,4.23169633,3490.0,3489.9,0.1]
[1721545256211,0.59626572,3490.1,3489.9,0.1]
[1721545256410,0.59626572,3490.1,3489.9,0.905]
[1721545256611,3.59626572,3490.2,3489.9,0.1]
[1721545257132,3.59626572,3490.2,3489.9,0.905]
[1721545257133,0.59626572,3490.2,3489.9,0.905]
[1721545257450,0.59626572,3490.6,3490.1,0.805]
[1721545257745,3.07406572,3490.7,3490.1,3.67024]
[1721545259401,0.59626572,3490.6,3490.1,3.67024]
[1721545259820,3.07406572,3490.7,3490.1,3.67024]
[1721545260857,5.93882572,3490.7,3490.1,3.67024]
[1721545261018,0.59626572,3490.6,3489.9,3.7704]
[1721545261548,0.59626572,3490.5,3489.9,3.7704]
[1721545262103,0.59626572,3490.5,3489.9,0.1]
[1721545262304,4.17709559,3490.7,3489.9,0.1]
[1721545262305,2.86508,3490.3,3489.9,0.1]
[1721545263051,2.4057,3490.2,3489.9,0.1]
[1721545264525,2.86532,3490.0,3489.9,0.1]
[1721545267227,8.13634,3490.0,3489.9,0.1]
[1721545267402,11.13634,3490.0,3489.9,0.1]
[1721545267603,12.76606013,3490.0,3489.9,0.1]
[1721545269303,15.63138013,3490.0,3489.9,0.1]
[1721545271836,15.78566139,3490.0,3489.9,0.1]
[1721545275001,18.65098139,3490.0,3489.9,0.1]
[1721545277623,15.78566139,3490.0,3489.9,0.1]
[1721545278561,17.27336498,3490.0,3489.9,0.1]
[1721545279159,15.78566139,3490.0,3489.9,0.1]
[1721545279979,17.27327305,3490.0,3489.9,0.1]
[1721545281226,17.27315019,3490.0,3489.9,0.1]
[1721545281536,15.78566139,3490.0,3489.9,0.1]
[1721545281939,11.4626,3489.6,3489.5,0.005]
[1721545282145,16.36261073,3489.6,3489.5,0.005]
[1721545282424,2.86664,3488.4,3488.3,2.42456897]
[1721545282633,5.73328,3488.4,3488.3,2.42456897]
[1721545284541,2.86664,3488.4,3488.3,2.42456897]
[1721545284744,0.59473218,3489.0,3488.3,3.22956897]
[1721545284927,3.0,3489.0,3488.3,2.97956897]
[1721545285131,2.86625,3488.9,3488.4,0.55]
[1721545285345,2.86631,3488.8,3488.4,0.55]
[1721545285954,2.86649,3488.6,3488.3,2.17456897]
[1721545287350,2.86632,3488.8,3488.3,2.17456897]
[1721545287758,0.573248,3488.8,3488.3,2.17456897]
[1721545287978,2.86643,3488.7,3488.3,2.17456897]
[1721545288855,2.86657,3488.5,3488.3,2.17456897]
[1721545290386,2.86643,3488.7,3488.3,2.17456897]
[1721545291382,2.86624,3488.9,3488.3,2.17456897]
[1721545291383,2.86648,3488.6,3488.3,2.17456897]
[1721545293190,2.86656,3488.5,3488.3,2.17456897]
[1721545294193,2.86664,3488.4,3488.3,2.17456897]
[1721545295266,2.86656,3488.5,3488.3,2.17456897]
[1721545295960,2.86637,3488.8,3488.3,2.17456897]
[1721545296160,2.86643,3488.7,3488.3,2.17456897]
[1721545296467,2.86648,3488.6,3488.3,2.17456897]
[1721545297370,2.86651,3488.6,3488.3,2.17456897]
[1721545299291,2.86656,3488.5,3488.3,2.17456897]
[1721545301194,0.573284,3488.6,3488.3,2.17456897]
[1721545301395,2.86626,3488.9,3488.3,2.17456897]
[1721545301699,2.86626,3488.9,3488.4,2.3628]
[1721545302499,2.86633,3488.8,3488.4,2.3628]
[1721545303103,2.8664,3488.7,3488.3,2.17456897]
[1721545303967,5.15063,3488.9,3488.3,2.17456897]
[1721545303968,2.86648,3488.6,3488.3,2.17456897]
[1721545305406,2.86664,3488.4,3488.3,2.17456897]
[1721545308340,3.46137218,3488.4,3488.3,2.17456897]
[1721545308543,2.86664,3488.4,3488.3,2.17456897]
[1721545309138,3.64810826,3488.4,3488.3,2.17456897]
[1721545309341,3.80283815,3488.4,3488.3,2.17456897]
[1721545309489,6.66947815,3488.4,3488.3,2.17456897]
[1721545309694,7.85894252,3488.4,3488.3,2.17456897]
[1721545310632,6.66947815,3488.4,3488.3,2.17456897]
[1721545312129,8.98927815,3488.4,3488.3,2.17456897]
[1721545312335,13.17874252,3488.4,3488.3,2.17456897]
[1721545313190,11.98927815,3488.4,3488.3,2.17456897]
[1721545313394,13.17874252,3488.4,3488.3,2.17456897]
[1721545314339,13.18410657,3488.4,3488.3,2.17456897]
[1721545314902,13.18494326,3488.4,3488.3,2.17456897]
[1721545315379,13.18518242,3488.4,3488.3,2.17456897]
[1721545315537,6.02136989,3488.4,3488.3,2.17456897]
[1721545316241,7.21727416,3488.4,3488.3,2.17456897]
[1721545317434,10.08391416,3488.4,3488.3,2.17456897]
[1721545318490,8.88800989,3488.4,3488.3,2.17456897]
[1721545319433,12.70337942,3488.4,3488.3,2.17456897]
[1721545319631,14.34096236,3488.4,3488.3,2.17456897]
[1721545320482,12.84539283,3488.4,3488.3,2.17456897]
[1721545321274,15.71203283,3488.4,3488.3,2.17456897]
[1721545321758,17.95996678,3488.4,3488.3,0.02071349]
[1721545321963,21.12554264,3488.4,3488.3,3.49e-06]
[1721545322158,19.03299167,3488.4,3488.3,3.49e-06]
[1721545322334,19.03299167,3488.4,3488.1,0.005]
[1721545322335,8.6004,3488.2,3488.1,0.005]
[1721545322535,19.8993319,3488.2,3488.1,0.005]
[1721545322773,8.05472,3487.4,3487.3,7.45]
[1721545322978,2.86779,3487.0,3486.9,0.1511357]
[1721545323178,5.73558,3487.0,3486.9,0.1511357]
[1721545323478,6.33297604,3487.0,3486.9,0.1511357]
[1721545323682,6.33297604,3487.0,3485.6,0.25]
[1721545323683,3.12330701,3487.0,3485.6,0.25]
[1721545323854,2.86855,3486.1,3485.6,0.25]
[1721545324054,2.86834,3486.4,3485.6,0.25]
[1721545324055,2.86869,3485.9,3485.6,0.25]
[1721545324361,5.18849,3485.9,3485.6,9.26e-06]
[1721545324560,5.18849,3485.9,3484.7,0.005]
[1721545324561,5.7392,3484.8,3484.7,0.005]
[1721545324735,3.992531,3485.8,3483.9,1.49599977]
[1721545324736,2.86944,3485.0,3483.9,2.87031]
[1721545324936,2.86944,3485.0,3483.8,2.2948]
[1721545324937,0.59661266,3485.5,3484.0,1.936]
[1721545325156,0.59661266,3485.7,3484.5,1.936]
[1721545325500,1.19485214,3486.0,3483.5,1.49599977]
[1721545325501,2.86871,3485.9,3484.7,2.86968]
[1721545325775,2.86871,3485.9,3484.6,3.06332]
[1721545325776,0.59661266,3485.9,3484.6,0.1936]
[1721545325986,2.91641266,3485.8,3484.2,2.87009]
[1721545326279,2.86903,3485.5,3484.2,2.87009]
[1721545327082,0.59661266,3485.9,3483.4,0.2056233]
[1721545327083,2.3198,3484.5,3483.4,0.2056233]
[1721545327236,2.3198,3484.5,3483.4,0.1556233]
[1721545327237,1.936,3484.0,3483.4,0.1556233]
[1721545327437,2.87067,3483.5,3483.4,0.1556233]
[1721545327896,2.87023,3484.1,3483.4,0.1556233]
[1721545328176,3.0,3484.4,3483.4,0.1556233]
[1721545328376,3.0,3484.4,3482.4,2.50917284]
[1721545328377,4.2558,3484.2,3482.4,2.50917284]
[1721545328539,0.59661266,3484.7,3482.9,2.3398]
[1721545328734,2.3198,3484.8,3482.9,2.3398]
[1721545328940,3.0,3485.0,3484.1,2.87016]
[1721545329142,3.0,3485.0,3483.4,2.87074]
[1721545329143,2.86977,3484.6,3483.4,2.87074]
[1721545329381,1.936,3485.0,3483.2,2.87092]
[1721545329699,0.1936,3484.9,3484.3,2.87]
[1721545329997,1.936,3485.8,3483.4,4.80671]
[1721545330140,1.936,3485.8,3484.9,2.86944]
[1721545330339,1.936,3485.8,3484.7,2.86967]
[1721545330575,1.936,3485.8,3484.8,0.55]
[1721545330940,2.86854,3486.1,3484.8,0.55]
[1721545331141,0.712434,3486.0,3484.6,0.55]
[1721545331540,0.712434,3486.0,3485.0,2.86942]
[1721545331763,2.86861,3486.0,3485.1,3.41935]
[1721545331961,4.4048,3486.6,3485.1,0.55]
[1721545331962,2.86879,3485.8,3485.1,0.55]
[1721545332304,2.86895,3485.6,3484.5,2.86985]
[1721545332608,2.86903,3485.5,3484.6,3.41975]
[1721545332901,2.86896,3485.6,3484.7,2.86966]
[1721545333105,0.573779,3485.6,3485.0,2.86943]
[1721545333267,3.0,3486.1,3485.1,0.55]
[1721545333462,3.0,3486.1,3484.8,3.41958]
[1721545333463,3.0,3486.0,3484.8,0.55]
[1721545333685,3.0,3486.0,3484.7,0.55]
[1721545333686,2.86903,3485.5,3484.7,0.55]
[1721545333996,2.86931,3485.2,3484.7,0.55]
[1721545334229,0.586931,3485.1,3484.7,0.55]
[1721545334729,0.586931,3485.1,3484.2,2.87009]
[1721545334730,0.586931,3485.1,3484.6,3.41975]
[1721545334893,3.0,3485.7,3484.6,3.41975]
[1721545334894,5.86886,3485.7,3484.6,3.41975]
[1721545335224,5.86886,3485.7,3484.8,2.86953]
[1721545335426,2.86895,3485.6,3484.9,0.55]
[1721545335790,2.86895,3485.6,3484.7,0.55]
[1721545336096,2.86831,3486.4,3485.5,2.86894]
[1721545336423,3.402092,3486.3,3485.6,0.55]
[1721545336624,0.533712,3486.3,3485.6,0.55]
[1721545336833,2.86836,3486.4,3485.6,0.55]
[1721545337026,2.86836,3486.4,3485.6,3.41893]
[1721545337400,2.86872,3485.9,3485.1,2.86932]
[1721545337601,2.86859,3486.1,3485.2,0.55]
[1721545337836,2.86829,3486.4,3485.2,0.55]
[1721545338045,2.86829,3486.4,3485.3,2.86919]
[1721545338046,2.8686,3486.1,3485.3,2.86919]
[1721545338210,2.8686,3486.1,3485.4,0.55]
[1721545338834,0.480429,3486.3,3485.4,0.55]
[1721545339139,2.86845,3486.2,3485.4,3.41903]
[1721545339450,3.480429,3486.3,3485.4,3.41903]
[1721545339605,0.6348789,3486.2,3485.4,0.55]
[1721545339805,2.8686,3486.1,3485.2,0.65]
[1721545340009,5.7372,3486.1,3485.2,3.51924]
[1721545340209,2.8686,3486.1,3485.2,0.65]
[1721545340408,2.86891,3485.7,3485.2,0.65]
[1721545340639,1.936,3485.5,3485.2,0.65]
[1721545340799,4.80503,3485.5,3485.2,0.65]
[1721545340997,2.86919,3485.3,3485.2,0.65]
[1721545341200,5.73838,3485.3,3485.2,0.1]
[1721545341441,6.505818,3485.3,3485.2,0.1]
[1721545341639,3.636628,3485.3,3485.2,0.1]
[1721545342217,6.505818,3485.3,3485.2,0.1]
[1721545342660,9.505818,3485.3,3485.2,0.1]
[1721545342821,12.375008,3485.3,3485.2,0.1]
[1721545343514,9.505818,3485.3,3485.2,0.1]
[1721545343915,3.636628,3485.3,3485.2,0.1]
[1721545344917,2.86911,3485.4,3485.2,0.1]
[1721545345151,2.86897,3485.6,3485.2,0.1]
[1721545345944,5.86887,3485.7,3485.2,0.1]
[1721545346256,2.86919,3485.3,3485.2,0.1]
[1721545346417,3.156109,3485.3,3485.2,0.1]
[1721545346617,0.286919,3485.3,3485.2,0.1]
[1721545346845,2.86896,3485.6,3485.2,0.1]
[1721545347288,2.86903,3485.5,3485.2,0.1]
[1721545347488,2.86889,3485.7,3485.2,0.1]
[1721545347788,2.86879,3485.8,3485.2,0.1]
[1721545347789,2.86905,3485.5,3485.2,0.1]
[1721545348672,3.0,3485.9,3485.2,0.1]
[1721545348673,5.86877,3485.9,3485.2,0.1]
[1721545348872,3.56701079,3486.0,3485.3,0.55]
[1721545349075,2.86862,3486.0,3485.3,3.41918]
[1721545349664,2.86862,3486.0,3485.3,0.55]
[1721545349864,0.480429,3486.3,3485.3,0.55]
[1721545350079,2.86853,3486.2,3485.3,0.55]
[1721545350460,2.86827,3486.5,3485.3,0.55]
[1721545350789,1.36828786,3486.9,3485.3,0.55]
[1721545350790,2.86873,3485.9,3485.3,0.55]
[1721545350986,2.86878,3485.8,3485.3,0.55]
[1721545351191,2.86887,3485.7,3485.3,0.55]
[1721545351592,2.86855,3486.1,3485.3,0.55]
[1721545351746,0.480455,3486.1,3485.3,3.41919]
[1721545351944,3.349025,3486.1,3485.4,2.86907]
[1721545352160,3.349025,3486.1,3485.5,0.55]
[1721545352361,0.480455,3486.1,3485.5,3.41902]
[1721545352586,4.936,3486.8,3485.5,3.41902]
[1721545352587,5.86837,3486.3,3485.6,2.86894]
[1721545352777,5.86837,3486.3,3485.7,0.55]
[1721545353461,2.86813,3486.6,3485.7,3.41878]
[1721545353802,2.8674,3487.5,3486.6,2.86811]
[1721545354010,3.15421,3487.4,3486.7,0.55]
[1721545354154,0.28674,3487.4,3486.7,3.41803]
[1721545354556,0.28674,3487.4,3486.7,0.55]
[1721545354795,2.86705,3487.9,3486.9,2.86786]
[1721545355107,0.87798033,3489.1,3486.7,3.41803]
[1721545355108,0.29956832,3489.0,3487.7,2.86721]
[1721545355398,1.34505677,3489.7,3487.8,2.9055]
[1721545355712,0.36516568,3489.6,3487.8,2.9055]
[1721545355994,2.86597,3489.3,3488.3,2.86671]
[1721545356196,2.86597,3489.3,3488.4,3.41663]
[1721545356493,0.36516568,3489.6,3488.7,2.86637]
[1721545356698,3.23086568,3489.6,3488.8,0.55]
[1721545356929,2.86593,3489.3,3488.8,0.55]
[1721545357202,2.86593,3489.3,3488.2,7.443811]
[1721545357203,2.86606,3489.1,3488.5,0.55]
[1721545357426,2.86645,3488.7,3488.3,0.55]
[1721545357575,0.32308657,3489.5,3488.3,0.55]
[1721545357576,2.86616,3489.0,3488.3,0.55]
[1721545357911,2.866,3489.2,3488.3,2.86672]
[1721545358075,2.86593,3489.3,3488.4,3.41664]
[1721545358076,0.573193,3489.1,3488.4,3.41664]
[1721545358278,2.86593,3489.3,3488.4,3.41664]
[1721545358509,3.18882657,3489.5,3488.4,3.41664]
[1721545358691,3.0,3489.4,3488.4,3.41664]
[1721545359311,2.86599,3489.2,3488.4,3.41664]
[1721545359511,3.0,3489.1,3488.4,3.41664]
[1721545359810,0.586599,3489.0,3488.4,0.55]
[1721545360185,0.32308657,3489.5,3488.4,0.55]
[1721545360552,3.18884657,3489.5,3488.6,2.8664]
[1721545360808,5.86582,3489.4,3488.7,0.55]
[1721545360972,2.86639,3488.8,3488.4,0.55]
[1721545361163,2.86615,3489.0,3488.1,0.55]
[1721545361164,3.439654,3488.7,3488.1,0.55]
[1721545361569,3.439654,3488.7,3487.6,7.443811]
[1721545361570,2.86662,3488.5,3487.6,7.443811]
[1721545361880,2.86662,3488.5,3487.3,7.443811]
[1721545362205,0.573254,3488.7,3487.3,7.443811]
[1721545362206,2.8668,3488.2,3487.3,7.443811]
[1721545362391,2.86674,3488.3,3487.3,7.443811]
[1721545362704,0.573338,3488.2,3487.1,2.3555]
[1721545362878,3.573254,3488.7,3487.1,2.3555]
[1721545362879,2.86693,3488.1,3487.1,2.3555]
[1721545363569,2.86693,3488.1,3487.3,2.86754]
[1721545363765,2.86699,3488.0,3487.1,2.3555]
[1721545363971,2.86714,3487.8,3486.7,10.311791]
[1721545364191,2.86714,3487.8,3486.9,2.86785]
[1721545364398,0.286714,3487.7,3486.9,2.86785]
[1721545364715,3.153934,3487.7,3486.9,2.86785]
[1721545365211,3.153934,3487.7,3486.7,10.311791]
[1721545365212,0.286714,3487.7,3487.0,2.86778]
[1721545365379,2.86697,3488.0,3487.2,2.86755]
[1721545365581,2.86708,3487.9,3487.3,0.55]
[1721545365783,2.8666,3488.5,3487.3,0.55]
[1721545365987,2.867,3488.0,3487.0,0.55]
[1721545366187,0.2867,3487.9,3487.3,2.86753]
[1721545366388,0.2867,3487.9,3487.4,0.55]
[1721545367109,2.86673,3488.3,3487.5,2.86735]
[1721545367311,3.0,3488.2,3487.6,0.55]
[1721545367610,2.86656,3488.5,3487.6,0.55]
[1721545367826,3.439654,3488.7,3487.9,2.86703]